fUST/lending_fUST_20250727
["ID","MTS","AMOUNT","RATE_DAILY","PERIOD"]
[375161568,1753559447416,-460.0,0.00021628,2]
[375161569,1753559447425,-590.72,0.00021628,2]
[375161570,1753559447434,-460.0,0.00021628,2]
[375161571,1753559447443,-460.0,0.00021629,2]
[375161572,1753559447453,-460.0,0.00021629,2]
[375161573,1753559447462,-460.0,0.00021629,2]
[375161574,1753559447471,-460.0,0.00021629,2]
[375161575,1753559447481,-487.25,0.00021629,2]
[375161576,1753559447491,-460.0,0.00021629,2]
[375161577,1753559447500,-460.0,0.00021629,2]
[375161578,1753559447509,-460.0,0.00021629,2]
[375161579,1753559447519,-460.0,0.00021629,2]
[375161580,1753559447528,-460.0,0.00021629,2]
[375161581,1753559447537,-460.0,0.00021638,2]
[375161582,1753559447546,-1034.52843808,0.00021762,5]
[375161583,1753559447556,-464.64,0.00021763,3]
[375161584,1753559447566,-460.0,0.00021813,2]
[375161585,1753559447576,-289.76,0.00021814,2]
[375161586,1753559447585,-557.06,0.00021814,2]
[375161587,1753559447595,-498.96,0.00021815,2]
[375161588,1753559447604,-460.0,0.00021815,2]
[375161589,1753559447613,-393.02978317,0.00021879,2]
[375161590,1753559447623,-379.10662659,0.00021901,2]
[375161591,1753559447632,-666.39,0.00021901,2]
[375161592,1753559447642,-460.0,0.00021901,2]
[375161593,1753559447652,-586.58,0.00021901,2]
[375161594,1753559447662,-863.04,0.00021901,2]
[375161595,1753559447671,-460.0,0.00021901,2]
[375161596,1753559447680,-747.35,0.00021901,2]
[375161597,1753559447689,-460.0,0.00021901,2]
[375161598,1753559447699,-460.0,0.00021902,2]
[375161599,1753559447708,-460.0,0.00021902,2]
[375161600,1753559447717,-460.0,0.00021902,2]
[375161601,1753559447727,-460.0,0.00021902,2]
[375161602,1753559447737,-460.0,0.00021902,2]
[375161603,1753559447747,-460.0,0.00021902,2]
[375161604,1753559447756,-460.0,0.00021902,2]
[375161605,1753559447765,-460.0,0.00021902,2]
[375161606,1753559447775,-590.72,0.00021902,2]
[375161607,1753559447784,-460.0,0.00021902,2]
[375161608,1753559447793,-460.0,0.00021903,2]
[375161609,1753559447802,-460.0,0.00021903,2]
[375161610,1753559447812,-46.2881955,0.00021903,2]
[375161611,1753559447880,-413.7118045,0.00021903,2]
[375161612,1753559447890,-460.0,0.00021903,2]
[375161613,1753559447899,-487.25,0.00021903,2]
[375161614,1753559447909,-460.0,0.00021903,2]
[375161615,1753559447922,-360.5648064,0.00021903,2]
[375161616,1753559452471,-422.748628,0.00020258,2]
[375161617,1753559458121,1913.4313846,0.000201,2]
[375161618,1753559458144,3086.5686154,0.000201,2]
[375161619,1753559469391,460.0,0.00019623,2]
[375161620,1753559470217,460.0,0.00019897,2]
[375161621,1753559473966,5000.0,0.000201,2]
[375161622,1753559483211,460.0,0.00019622,2]
[375161623,1753559484047,460.0,0.00019896,2]
[375161625,1753559489606,73.4313846,0.000201,2]
[375161626,1753559489629,4926.5686154,0.000201,2]
[375161627,1753559504267,150.0,0.00019621,2]
[375161628,1753559505871,4923.4313846,0.000201,2]
[375161629,1753559505895,76.5686154,0.000201,2]
[375161630,1753559520981,5000.0,0.000201,2]
[375161631,1753559533090,504.27604313,0.00019554,2]
[375161632,1753559536005,2881.94672366,0.000201,2]
[375161633,1753559583890,150.0,0.00019472,2]
[375161634,1753559598655,460.0,0.00019622,2]
[375161635,1753559599174,460.0,0.00019896,2]
[375161636,1753559643069,150.0,0.0001898,2]
[375161637,1753559662852,317.20861781,0.00019622,2]
[375161638,1753559662876,142.79138219,0.00019622,2]
[375161639,1753559663157,460.0,0.00019896,2]
[375161640,1753559663801,150.0,0.00019521,2]
[375161641,1753559664061,423.23099396,0.0002007,2]
[375161642,1753559709279,1770.841113,0.00019189,2]
[375161643,1753559741980,1264.2208498,0.00019342,2]
[375161644,1753559742606,150.0,0.00019411,2]
[375161645,1753559753456,171.87039558,0.0002007,2]
[375161647,1753559789404,460.0,0.00019622,2]
[375161648,1753559789960,460.0,0.00019896,2]
[375161650,1753559826752,460.0,0.00019622,2]
[375161651,1753559827419,150.0,0.00019632,2]
[375161652,1753559832778,460.0,0.00019622,2]
[375161653,1753559833424,460.0,0.00019896,2]
[375161654,1753559835096,302.56562588,0.00019553,2]
[375161655,1753559835439,151.28281294,0.00019553,2]
[375161656,1753559857128,472.5440475,0.00020057,2]
[375161657,1753559901127,150.0,0.00019999,2]
[375161658,1753559905807,460.0,0.00019622,2]
[375161659,1753559906388,460.0,0.00019896,2]
[375161660,1753559936361,370.32711975,0.0002007,2]
[375161661,1753559954358,460.0,0.00019622,2]
[375161662,1753559955431,190.3256594,0.00019896,2]
[375161663,1753559955453,134.9643406,0.00019896,2]
[375161665,1753559973745,150.0,0.0002001,2]
[375161666,1753560001729,179.40119272,0.00020057,2]
[375161667,1753560006744,179.40119271,0.0002007,2]
[375161668,1753560013283,460.0,0.00019622,2]
[375161669,1753560013805,460.0,0.00019896,2]
[375161670,1753560048108,150.0,0.00020039,2]
[375161671,1753560056860,460.0,0.00019622,2]
[375161672,1753560057404,460.0,0.00019896,2]
[375161673,1753560071952,293.62554274,0.0002007,2]
[375161675,1753560083691,244.222401,0.00013699,2]
[375161676,1753560085892,171.87039558,0.0002007,2]
[375161677,1753560115908,2181.9005249,0.00019355,2]
[375161678,1753560120464,460.0,0.00019622,2]
[375161679,1753560120933,460.0,0.00019896,2]
[375161680,1753560129136,150.0,0.00020093,2]
[375161681,1753560130065,293.62554274,0.00020093,2]
[375161682,1753560158816,460.0,0.00019622,2]
[375161683,1753560159116,460.0,0.00019896,2]
[375161684,1753560220173,324.03622972,0.00020058,2]
[375161685,1753560230793,1866.95263729,0.00019157,2]
[375161686,1753560230816,10000.0,0.00019157,2]
[375161687,1753560230839,10000.0,0.00019157,2]
[375161688,1753560230861,3033.04736271,0.00019157,2]
[375161689,1753560240405,5000.0,0.000201,2]
[375161690,1753560241875,293.62554274,0.000201,2]
[375161691,1753560248302,1673.32709455,0.000201,2]
[375161692,1753560248327,3326.67290545,0.000201,2]
[375161693,1753560293709,6673.32709455,0.00019157,2]
[375161694,1753560293732,3326.67290545,0.00019157,2]
[375161695,1753560371162,151.0,0.000201,2]
[375161696,1753560414910,171.87039558,0.0002007,2]
[375161697,1753560502842,373.49806146,0.00020058,2]
[375161706,1753560543245,166.0,0.00019157,2]
[375161710,1753560577744,283.68555776,0.00019061,2]
[375161733,1753560631882,-150.0,0.00020129,2]
[375161734,1753560631893,-151.0,0.00020147,2]
[375161735,1753560631902,-151.0,0.00020147,2]
[375161736,1753560631912,-151.0,0.00020147,2]
[375161737,1753560631922,-151.0,0.00020147,2]
[375161738,1753560631932,-300.0,0.00020154,2]
[375161739,1753560631941,-811.0,0.00020155,2]
[375161740,1753560631951,-300.0,0.00020155,2]
[375161741,1753560631961,-300.0,0.00020155,2]
[375161743,1753560631970,-1200.0,0.00020155,2]
[375161745,1753560631980,-225.83149126,0.00020156,2]
[375161747,1753560631990,-455.96652894,0.00020157,2]
[375161749,1753560632001,-135.30079066,0.00020157,2]
[375161752,1753560632019,-324.69920934,0.00020157,2]
[375161754,1753560632030,-394.30966042,0.00020157,2]
[375161757,1753560632040,-460.0,0.00020157,2]
[375161759,1753560632050,-460.0,0.00020157,2]
[375161761,1753560632059,-460.0,0.00020157,2]
[375161764,1753560632069,-460.0,0.00020157,2]
[375161767,1753560632078,-595.51,0.00020157,2]
[375161770,1753560632087,-462.28676759,0.00020157,2]
[375161773,1753560632097,-460.0,0.00020157,2]
[375161775,1753560632106,-673.57,0.00020157,2]
[375161776,1753560632116,-460.0,0.00020157,2]
[375161779,1753560632131,-460.0,0.00020157,2]
[375161781,1753560632140,-460.0,0.00020157,2]
[375161783,1753560632150,-460.0,0.00020157,2]
[375161785,1753560632159,-460.0,0.00020157,2]
[375161786,1753560632169,-800.04,0.00020157,2]
[375161788,1753560632179,-460.0,0.00020157,2]
[375161790,1753560632188,-460.0,0.00020157,2]
[375161792,1753560632198,-460.0,0.00020157,2]
[375161794,1753560632207,-460.0,0.00020157,2]
[375161796,1753560632217,-460.0,0.00020157,2]
[375161798,1753560632226,-460.0,0.00020157,2]
[375161799,1753560632235,-488.77,0.00020157,2]
[375161801,1753560632248,-460.0,0.00020157,2]
[375161803,1753560632257,-460.0,0.00020157,2]
[375161805,1753560632267,-460.0,0.00020157,2]
[375161807,1753560632276,-460.0,0.00020157,2]
[375161809,1753560632285,-460.0,0.00020157,2]
[375161811,1753560632294,-460.0,0.00020157,2]
[375161813,1753560632304,-460.0,0.00020157,2]
[375161815,1753560632313,-481.25,0.00020157,2]
[375161817,1753560632322,-117.06261637,0.00020157,2]
[375161819,1753560632334,-342.93738363,0.00020157,2]
[375161821,1753560632344,-460.0,0.00020157,2]
[375161823,1753560632353,-577.34,0.00020157,2]
[375161825,1753560632363,-522.65,0.00020157,2]
[375161827,1753560632372,-460.0,0.00020157,2]
[375161829,1753560632382,-460.0,0.00020157,2]
[375161831,1753560632391,-460.0,0.00020157,2]
[375161832,1753560632400,-317.35819479,0.00020157,2]
[375161835,1753560632417,-142.64180521,0.00020157,2]
[375161837,1753560632427,-460.0,0.00020157,2]
[375161839,1753560632436,-589.58,0.00020157,2]
[375161841,1753560632446,-75.13959763,0.00020157,2]
[375161843,1753560632457,-384.86040237,0.00020157,2]
[375161845,1753560632466,-460.0,0.00020157,2]
[375161847,1753560632476,-175.81208073,0.00020158,2]
[375161933,1753560637682,-151.0,0.00020129,2]
[375161935,1753560637692,-151.0,0.00020147,2]
[375161937,1753560637702,-151.0,0.00020155,2]
[375161938,1753560637712,-151.0,0.00020157,2]
[375161939,1753560637721,-460.0,0.00020157,2]
[375161940,1753560637731,-324.18791927,0.00020158,2]
[375161941,1753560637741,-91.90947616,0.00020158,2]
[375161942,1753560637752,-408.09052384,0.00020158,2]
[375161943,1753560637762,-404.9709018,0.00020158,2]
[375161944,1753560637773,-95.0290982,0.00020158,2]
[375161945,1753560637783,-427.68383062,0.00020158,2]
[375161946,1753560637794,-72.31616938,0.00020158,2]
[375161947,1753560637804,-500.0,0.00020158,2]
[375161948,1753560637813,-500.0,0.00020158,2]
[375161949,1753560637823,-500.0,0.00020158,2]
[375161950,1753560637832,-382.90627191,0.00020158,2]
[375161951,1753560637842,-500.0,0.00020158,2]
[375161952,1753560637851,-500.0,0.00020158,2]
[375161953,1753560637861,-500.0,0.00020158,2]
[375161954,1753560637871,-500.0,0.00020158,2]
[375161955,1753560637880,-500.0,0.00020158,2]
[375161956,1753560637890,-266.29067554,0.00020158,2]
[375161957,1753560637902,-233.70932446,0.00020158,2]
[375161958,1753560637912,-500.0,0.00020158,2]
[375161959,1753560637922,-500.0,0.00020158,2]
[375161960,1753560637932,-500.0,0.00020158,2]
[375161961,1753560637942,-500.0,0.00020158,2]
[375161962,1753560637951,-500.0,0.00020158,2]
[375161963,1753560637961,-554.5105305,0.00020158,2]
[375161964,1753560637971,-554.5105305,0.00020158,2]
[375161965,1753560637980,-554.5105305,0.00020158,2]
[375161966,1753560637990,-554.5105305,0.00020158,2]
[375161967,1753560637999,-554.5105305,0.00020158,2]
[375161968,1753560638008,-554.5105305,0.00020158,2]
[375161969,1753560638018,-554.5105305,0.00020158,2]
[375161970,1753560638027,-554.5105305,0.00020158,2]
[375161971,1753560638037,-460.0,0.00020158,2]
[375161972,1753560638047,-460.0,0.00020158,2]
[375161973,1753560638056,-460.0,0.00020158,2]
[375161974,1753560638065,-1253.17,0.00020158,2]
[375161975,1753560638074,-460.0,0.00020158,2]
[375161976,1753560638083,-460.0,0.00020158,2]
[375161977,1753560638093,-460.0,0.00020158,2]
[375161978,1753560638102,-460.0,0.00020158,2]
[375161979,1753560638111,-228.936,0.00020158,2]
[375161980,1753560638123,-113.35162319,0.00020158,2]
[375161981,1753560638135,-346.64837681,0.00020158,2]
[375161982,1753560638145,-460.0,0.00020158,2]
[375161983,1753560638154,-93.97162319,0.00020158,2]
[375161984,1753560638171,-460.0,0.00020157,2]
[375161985,1753560638181,-366.02837681,0.00020158,2]
[375161986,1753560638192,-558.32,0.00020158,2]
[375161987,1753560638203,-439.93583159,0.00020158,2]
[375161988,1753560638216,-70.72596374,0.00020158,2]
[375161989,1753560638227,-460.0,0.00020158,2]
[375161990,1753560638236,-490.45,0.00020158,2]
[375161991,1753560638247,-39.17562421,0.00020158,2]
[375161992,1753560638258,-420.82437579,0.00020158,2]
[375161993,1753560638268,-460.0,0.00020158,2]
[375161994,1753560638278,-3691.19174367,0.00020159,2]
[375161995,1753560638290,-454.12209124,0.00020159,2]
[375161996,1753560638302,-460.0,0.00020159,2]
[375161997,1753560638313,-3038.26454868,0.00020159,2]
[375162185,1753560642907,-460.0,0.00020157,2]
[375162186,1753560642917,-460.0,0.00020157,2]
[375162187,1753560642927,-500.0,0.00020158,2]
[375162188,1753560642938,-500.0,0.00020158,2]
[375162189,1753560642948,-500.0,0.00020158,2]
[375162190,1753560642958,-500.0,0.00020158,2]
[375162191,1753560642968,-500.0,0.00020158,2]
[375162192,1753560642978,-214.44687398,0.00020158,2]
[375162193,1753560642987,-562.42767198,0.00020158,2]
[375162194,1753560642997,-68458.26273141,0.00020159,2]
[375162200,1753560645773,-12053.27027227,0.00020159,2]
[375162201,1753560645928,-352.156064,0.00020159,2]
[375162207,1753560670525,1257.200609,0.00019316,2]
[375162208,1753560699875,150.0,0.00020048,2]
[375162209,1753560770471,4120.07247075,0.00020059,2]
[375162210,1753560770496,10000.0,0.00020059,2]
[375162211,1753560770519,9717.14933722,0.00020059,2]
[375162212,1753560774290,150.0,0.00020047,2]
[375162213,1753560779793,132.85066278,0.000201,2]
[375162214,1753560956811,400.0,0.00025614,120]
[375162217,1753561133141,232.01128,0.00013699,2]
[375162219,1753561155175,4867.14933722,0.0001951,2]
[375162220,1753561166391,24900.0,0.00019058,2]
[375162221,1753561178588,0.83938278,0.0001951,2]
[375162222,1753561178612,4999.16061722,0.0001951,2]
[375162223,1753561186426,5000.0,0.0001951,2]
[375162224,1753561194449,5000.0,0.0001951,2]
[375162226,1753561247163,229.030278,0.00019178,2]
[375162228,1753561477790,7813.3306185,0.000192,2]
[375162230,1753561632160,-150.0,0.00019573,2]
[375162231,1753561632180,-218.3172978,0.00019819,2]
[375162233,1753561680799,166.0,0.00019054,2]
[375162235,1753561692639,330.59916447,0.00019205,5]
[375162236,1753561693493,415.07439566,0.00010618,2]
[375162237,1753561695353,6046.80492615,0.000125,2]
[375162238,1753561695376,5333.9758148,0.000125,2]
[375162239,1753561706773,277.79679782,0.00014114,2]
[375162240,1753561708605,282.64508246,0.0001,2]
[375162241,1753561713487,8770.86327137,0.00017,2]
[375162243,1753561717731,580.65061792,0.000149,2]
[375162244,1753561718079,1000.0,0.0001,2]
[375162245,1753561721944,210.72647937,0.00016,2]
[375162246,1753561723520,7300.61291313,0.0001,2]
[375162297,1753561832215,-150.0,0.00019602,2]
[375162298,1753561832225,-143.65114849,0.0001982,2]
[375162330,1753561837881,-150.0,0.00019613,2]
[375162332,1753561837891,-57.74885151,0.0001982,2]
[375162334,1753561837901,-559.44321432,0.00019957,2]
[375162336,1753561837911,-300.0,0.00019999,2]
[375162338,1753561837920,-300.0,0.00019999,2]
[375162340,1753561837931,-300.0,0.00019999,2]
[375162342,1753561837941,-1200.0,0.00019999,2]
[375162344,1753561837952,-500.0,0.00019999,2]
[375162346,1753561837962,-500.0,0.00019999,2]
[375162348,1753561837971,-213.46759288,0.00019999,2]
[375162350,1753561837981,-243.74401539,0.00019999,2]
[375162352,1753561837991,-500.0,0.00019999,2]
[375162354,1753561838001,-500.0,0.00019999,2]
[375162356,1753561838010,-500.0,0.00019999,2]
[375162358,1753561838019,-500.0,0.00019999,2]
[375162360,1753561838029,-500.0,0.00019999,2]
[375162362,1753561838038,-500.0,0.00019999,2]
[375162364,1753561838047,-586.42730422,0.00019999,2]
[375162367,1753561838056,-17671.54578598,0.0002,4]
[375162370,1753561838068,-41679.42579246,0.0002,4]
[375162373,1753561838079,-1465.79542627,0.0002,4]
[375162375,1753561838091,-2227.93558558,0.0002,4]
[375162377,1753561838100,-25000.0,0.00020047,2]
[375162379,1753561838110,-191.85177838,0.00020047,2]
[375162381,1753561838119,-338.05,0.00020048,3]
[375162383,1753561838128,-377.0,0.00020054,2]
[375162385,1753561838138,-500.0,0.00020054,2]
[375162387,1753561838149,-500.0,0.00020054,2]
[375162389,1753561838160,-460.0,0.00020055,2]
[375162391,1753561838171,-460.0,0.00020055,2]
[375162393,1753561838180,-460.0,0.00020055,2]
[375162395,1753561838189,-460.0,0.00020055,2]
[375162397,1753561838199,-460.0,0.00020055,2]
[375162399,1753561838209,-460.0,0.00020055,2]
[375162401,1753561838218,-460.0,0.00020055,2]
[375162402,1753561838228,-955.51856453,0.00020055,2]
[375162404,1753561838238,-460.0,0.00020056,2]
[375162406,1753561838247,-460.0,0.00020056,2]
[375162408,1753561838256,-460.0,0.00020056,2]
[375162409,1753561838265,-460.90525251,0.00020056,2]
[375162410,1753561838274,-460.0,0.00020056,2]
[375162412,1753561838284,-460.0,0.00020056,2]
[375162414,1753561838293,-779.16,0.00020056,2]
[375162416,1753561838302,-460.0,0.00020056,2]
[375162418,1753561838312,-460.0,0.00020056,2]
[375162420,1753561838321,-460.0,0.00020056,2]
[375162422,1753561838330,-957.18,0.00020056,2]
[375162424,1753561838340,-460.0,0.00020056,2]
[375162426,1753561838350,-460.0,0.00020056,2]
[375162428,1753561838359,-460.0,0.00020056,2]
[375162430,1753561838369,-460.0,0.00020056,2]
[375162432,1753561838379,-460.0,0.00020056,2]
[375162434,1753561838388,-460.0,0.00020056,2]
[375162436,1753561838397,-460.0,0.00020056,2]
[375162438,1753561838406,-460.0,0.00020056,2]
[375162440,1753561838415,-460.0,0.00020056,2]
[375162442,1753561838424,-720.23,0.00020056,2]
[375162444,1753561838433,-460.0,0.00020056,2]
[375162446,1753561838442,-460.0,0.00020056,2]
[375162448,1753561838451,-460.0,0.00020056,2]
[375162449,1753561838460,-460.0,0.00020056,2]
[375162451,1753561838469,-460.0,0.00020056,2]
[375162453,1753561838479,-460.0,0.00020056,2]
[375162455,1753561838488,-460.0,0.00020056,2]
[375162457,1753561838497,-460.0,0.00020057,2]
[375162459,1753561838506,-460.0,0.00020057,2]
[375162461,1753561838515,-541.59,0.00020057,2]
[375162463,1753561838525,-460.0,0.00020057,2]
[375162465,1753561838534,-460.0,0.00020057,2]
[375162467,1753561838544,-488.29088345,0.00020057,2]
[375162469,1753561838554,-301.49225741,0.00020057,2]
[375162471,1753561838564,-460.0,0.00020057,2]
[375162473,1753561838574,-460.0,0.00020057,2]
[375162475,1753561838584,-460.0,0.00020057,2]
[375162477,1753561838593,-460.0,0.00020057,2]
[375162479,1753561838602,-492.61934634,0.00020057,2]
[375162480,1753561838611,-500.0,0.00020057,2]
[375162482,1753561838622,-460.0,0.00020057,2]
[375162484,1753561838637,-460.0,0.00020057,2]
[375162486,1753561838648,-460.0,0.00020057,2]
[375162488,1753561838658,-460.0,0.00020057,2]
[375162489,1753561838667,-460.0,0.00020057,2]
[375162490,1753561838677,-460.0,0.00020057,2]
[375162492,1753561838699,-464.817689,0.00020057,2]
[375162494,1753561838710,-460.0,0.00020057,2]
[375162496,1753561838720,-460.0,0.00020057,2]
[375162498,1753561838731,-460.0,0.00020057,2]
[375162500,1753561838740,-460.0,0.00020057,2]
[375162502,1753561838750,-460.0,0.00020057,2]
[375162504,1753561838761,-460.0,0.00020057,2]
[375162506,1753561838773,-460.0,0.00020057,2]
[375162508,1753561838784,-460.0,0.00020057,2]
[375162510,1753561838794,-460.0,0.00020057,2]
[375162512,1753561838804,-460.0,0.00020057,2]
[375162514,1753561838814,-460.0,0.00020057,2]
[375162516,1753561838825,-460.0,0.00020057,2]
[375162518,1753561838835,-460.0,0.00020057,2]
[375162520,1753561838845,-460.0,0.00020057,2]
[375162522,1753561838855,-460.0,0.00020057,2]
[375162524,1753561838864,-460.0,0.00020057,2]
[375162526,1753561838874,-460.0,0.00020057,2]
[375162528,1753561838883,-460.0,0.00020057,2]
[375162530,1753561838894,-460.0,0.00020057,2]
[375162532,1753561838904,-460.0,0.00020057,2]
[375162534,1753561838914,-460.0,0.00020057,2]
[375162536,1753561838924,-460.0,0.00020057,2]
[375162538,1753561838933,-460.0,0.00020057,2]
[375162541,1753561838943,-460.0,0.00020057,2]
[375162543,1753561838952,-460.0,0.00020057,2]
[375162545,1753561838962,-460.0,0.00020057,2]
[375162547,1753561838971,-460.0,0.00020057,2]
[375162549,1753561838980,-460.0,0.00020057,2]
[375162551,1753561838989,-460.0,0.00020057,2]
[375162553,1753561838998,-460.0,0.00020057,2]
[375162555,1753561839008,-460.0,0.00020057,2]
[375162557,1753561839017,-460.0,0.00020057,2]
[375162559,1753561839027,-460.0,0.00020057,2]
[375162561,1753561839038,-460.0,0.00020057,2]
[375162563,1753561839048,-460.0,0.00020057,2]
[375162565,1753561839058,-460.0,0.00020057,2]
[375162567,1753561839067,-497.251372,0.00020057,2]
[375162569,1753561839078,-140.27201825,0.00020057,2]
[375162572,1753561839092,-319.72798175,0.00020057,2]
[375162577,1753561839234,-2.52127011,0.00020057,2]
[375162578,1753561839253,-457.47872989,0.00020057,2]
[375162579,1753561839263,-460.0,0.00020057,2]
[375162580,1753561839272,-483.48,0.00020057,2]
[375162581,1753561839281,-460.0,0.00020057,2]
[375162582,1753561839290,-460.0,0.00020058,2]
[375162583,1753561839299,-439.45200128,0.00020058,2]
[375162584,1753561839308,-217.47496504,0.00020058,2]
[375162585,1753561839317,-415.39137171,0.00020058,2]
[375162586,1753561839329,-1335.76862829,0.00020058,2]
[375162587,1753561839338,-460.0,0.00020058,2]
[375162588,1753561839347,-460.0,0.00020058,2]
[375162589,1753561839357,-460.0,0.00020058,2]
[375162590,1753561839366,-460.0,0.00020058,2]
[375162591,1753561839375,-460.0,0.00020058,2]
[375162592,1753561839384,-460.0,0.00020058,2]
[375162593,1753561839393,-460.0,0.00020058,2]
[375162594,1753561839402,-498.02,0.00020058,2]
[375162595,1753561839411,-460.0,0.00020058,2]
[375162596,1753561839420,-460.0,0.00020058,2]
[375162597,1753561839429,-460.0,0.00020058,2]
[375162598,1753561839438,-460.0,0.00020058,2]
[375162599,1753561839447,-476.94684712,0.00020058,2]
[375162600,1753561839456,-1226.31020665,0.00020059,2]
[375162601,1753561839464,-35211.71009176,0.00020059,2]
[375162602,1753561839476,-4858.64262905,0.00020059,2]
[375162603,1753561839488,-923.43172791,0.00020059,2]
[375162604,1753561839499,-19994.11344,0.00020059,2]
[375162605,1753561839510,-15337.95858979,0.00020059,2]
[375162825,1753561842315,-460.0,0.00020055,2]
[375162828,1753561842324,-460.0,0.00020057,2]
[375162831,1753561842334,-108.6187293,0.00020059,2]
[375162984,1753561843095,-14490.96748548,0.00020059,2]
[375163029,1753562082897,814.490331,0.00019042,2]
[375163031,1753562245820,5428.23869213,0.00019039,2]
[375163032,1753562245843,19471.76130787,0.00019039,2]
[375163034,1753562386161,245.867876,0.00013699,2]
[375163037,1753562703023,166.0,0.00018995,2]
[375163041,1753562843103,-150.0,0.00019582,2]
[375163042,1753562843129,-197.87053434,0.00019628,2]
[375163043,1753562843149,-165.95302815,0.00019729,2]
[375163088,1753563032298,-150.0,0.00019599,2]
[375163090,1753563032308,-433.435884,0.00019897,2]
[375163098,1753563032384,-67.96633035,0.00019897,2]
[375163100,1753563032393,-270.9492167,0.00019956,2]
[375163133,1753563038067,-1742.37739508,0.00019956,2]
[375163134,1753563038078,-3801.642,0.00019987,2]
[375163135,1753563038088,-300.0,0.00019994,2]
[375163136,1753563038097,-1200.0,0.00019994,2]
[375163137,1753563038108,-500.0,0.00019994,2]
[375163138,1753563038118,-500.0,0.00019994,2]
[375163139,1753563038127,-500.0,0.00019994,2]
[375163141,1753563038137,-603.30013533,0.00019994,2]
[375163143,1753563038147,-500.0,0.00019994,2]
[375163144,1753563038157,-500.0,0.00019994,2]
[375163145,1753563038167,-448.61785682,0.00019994,2]
[375163146,1753563038179,-51.38214318,0.00019994,2]
[375163147,1753563038189,-500.0,0.00019994,2]
[375163148,1753563038199,-563.87246151,0.00019994,2]
[375163149,1753563038208,-466.11534101,0.00019994,2]
[375163150,1753563038219,-33.88465899,0.00019994,2]
[375163151,1753563038229,-426.11534101,0.00019994,2]
[375163155,1753563038458,-73.88465899,0.00019994,2]
[375163156,1753563038467,-500.0,0.00019994,2]
[375163157,1753563038477,-500.0,0.00019994,2]
[375163158,1753563038486,-506.34662488,0.00019994,2]
[375163159,1753563038496,-374.90334146,0.00019994,2]
[375163160,1753563038505,-500.0,0.00019994,2]
[375163161,1753563038515,-500.0,0.00019994,2]
[375163162,1753563038524,-500.0,0.00019994,2]
[375163163,1753563038533,-300.0,0.00019994,2]
[375163164,1753563038543,-500.0,0.00019994,2]
[375163165,1753563038552,-621.34675929,0.00019994,2]
[375163166,1753563038562,-173.0,0.00019995,2]
[375163167,1753563038571,-460.0,0.00019996,2]
[375163168,1753563038581,-460.0,0.00019996,2]
[375163169,1753563038590,-500.0,0.00019996,2]
[375163170,1753563038600,-460.0,0.00019996,2]
[375163171,1753563038609,-460.0,0.00019996,2]
[375163172,1753563038619,-460.0,0.00019996,2]
[375163173,1753563038628,-460.0,0.00019996,2]
[375163174,1753563038638,-472.9226879,0.00019996,2]